fUST/lending_fUST_20240722
["ID","MTS","AMOUNT","RATE_DAILY","PERIOD"]
[332871567,1721607056677,-500.0,0.0001452,2]
[332871568,1721607056686,-500.0,0.0001452,2]
[332871569,1721607056696,-500.0,0.0001452,2]
[332871570,1721607056707,-500.0,0.0001452,2]
[332871571,1721607056716,-500.0,0.0001452,2]
[332871572,1721607056725,-500.0,0.0001452,2]
[332871573,1721607056735,-447.1,0.0001452,2]
[332871574,1721607056745,-540.93,0.0001452,2]
[332871575,1721607056755,-500.0,0.0001452,2]
[332871576,1721607056764,-500.0,0.0001452,2]
[332871577,1721607056774,-500.0,0.0001452,2]
[332871578,1721607056785,-500.0,0.0001452,2]
[332871579,1721607056795,-500.0,0.0001452,2]
[332871580,1721607056804,-500.0,0.0001452,2]
[332871581,1721607056814,-500.0,0.0001452,2]
[332871582,1721607056827,-500.0,0.0001452,2]
[332871583,1721607056837,-500.0,0.0001452,2]
[332871584,1721607056847,-500.0,0.0001452,2]
[332871585,1721607056857,-533.74,0.0001452,2]
[332871586,1721607056866,-580.89,0.0001452,2]
[332871587,1721607056876,-500.0,0.0001452,2]
[332871588,1721607056887,-500.0,0.0001452,2]
[332871589,1721607056897,-500.0,0.0001452,2]
[332871590,1721607056906,-500.0,0.0001452,2]
[332871591,1721607056916,-500.0,0.0001452,2]
[332871592,1721607056926,-500.0,0.0001452,2]
[332871593,1721607056935,-500.0,0.0001452,2]
[332871594,1721607056944,-500.0,0.0001452,2]
[332871595,1721607056953,-551.05,0.0001452,2]
[332871596,1721607056963,-357.83,0.0001452,2]
[332871597,1721607056972,-536.87517509,0.0001452,2]
[332871598,1721607056981,-500.0,0.0001452,2]
[332871599,1721607056991,-337.16,0.0001452,2]
[332871600,1721607057001,-401.97,0.0001452,2]
[332871601,1721607057011,-577.98,0.0001452,2]
[332871602,1721607057023,-500.0,0.0001452,2]
[332871603,1721607057033,-500.0,0.0001452,2]
[332871604,1721607057044,-294.57,0.0001452,2]
[332871605,1721607057055,-500.0,0.0001452,2]
[332871606,1721607057065,-500.0,0.0001452,2]
[332871607,1721607057076,-256.04,0.0001452,2]
[332871608,1721607057085,-362.5,0.0001452,2]
[332871609,1721607057095,-500.0,0.0001452,2]
[332871610,1721607057106,-500.0,0.0001452,2]
[332871611,1721607057116,-500.0,0.0001452,2]
[332871612,1721607057126,-500.0,0.0001452,2]
[332871613,1721607057136,-500.0,0.0001452,2]
[332871614,1721607057147,-500.0,0.0001452,2]
[332871615,1721607057157,-500.0,0.0001452,2]
[332871616,1721607057167,-500.0,0.0001452,2]
[332871617,1721607057177,-500.0,0.0001452,2]
[332871618,1721607057187,-541.64,0.0001452,2]
[332871619,1721607057196,-263.56,0.0001452,2]
[332871620,1721607057208,-500.0,0.0001452,2]
[332871621,1721607057217,-360.36,0.0001452,2]
[332871622,1721607057227,-500.0,0.0001452,2]
[332871623,1721607057236,-500.0,0.0001452,2]
[332871624,1721607057246,-401.92,0.0001452,2]
[332871625,1721607057257,-500.0,0.0001452,2]
[332871626,1721607057267,-500.0,0.0001452,2]
[332871627,1721607057277,-569.28481503,0.0001452,2]
[332871628,1721607057287,-500.0,0.0001452,2]
[332871629,1721607057296,-417.95060172,0.0001452,2]
[332871630,1721607057306,-500.0,0.0001452,2]
[332871631,1721607057316,-500.0,0.0001452,2]
[332871632,1721607057326,-365.28,0.0001452,2]
[332871633,1721607057335,-500.0,0.0001452,2]
[332871634,1721607057345,-500.0,0.0001452,2]
[332871635,1721607057356,-500.0,0.0001452,2]
[332871636,1721607057366,-409.38,0.0001452,2]
[332871637,1721607057376,-500.0,0.0001452,2]
[332871638,1721607057386,-500.0,0.0001452,2]
[332871639,1721607057397,-500.0,0.0001452,2]
[332871640,1721607057406,-500.0,0.0001452,2]
[332871641,1721607057417,-217.77,0.0001452,2]
[332871642,1721607057429,-500.0,0.0001452,2]
[332871643,1721607057440,-223.55,0.0001452,2]
[332871644,1721607057450,-500.0,0.0001452,2]
[332871645,1721607057460,-355.38,0.0001452,2]
[332871646,1721607057471,-500.0,0.0001452,2]
[332871647,1721607057480,-363.43,0.0001452,2]
[332871648,1721607057491,-500.0,0.0001452,2]
[332871649,1721607057501,-6122.85,0.0001452,2]
[332871650,1721607057512,-533.74,0.0001452,2]
[332871651,1721607057521,-629.06,0.0001452,2]
[332871652,1721607057532,-500.0,0.0001452,2]
[332871653,1721607057542,-500.0,0.0001452,2]
[332871654,1721607057551,-523.92,0.0001452,2]
[332871655,1721607057561,-500.0,0.0001452,2]
[332871656,1721607057570,-500.0,0.0001452,2]
[332871657,1721607057579,-500.0,0.0001452,2]
[332871658,1721607057588,-500.0,0.0001452,2]
[332871659,1721607057598,-500.0,0.0001452,2]
[332871660,1721607057608,-500.0,0.0001452,2]
[332871661,1721607057618,-215.22,0.0001452,2]
[332871662,1721607057627,-500.0,0.0001452,2]
[332871663,1721607057637,-500.0,0.0001452,2]
[332871664,1721607057647,-500.0,0.0001452,2]
[332871665,1721607057657,-274.44,0.0001452,2]
[332871666,1721607057667,-500.0,0.0001452,2]
[332871667,1721607057676,-636.85,0.0001452,2]
[332871668,1721607057687,-500.0,0.0001452,2]
[332871669,1721607057697,-464.06,0.0001452,2]
[332871670,1721607057707,-500.0,0.0001452,2]
[332871671,1721607057717,-225.84,0.0001452,2]
[332871672,1721607057727,-498.28,0.0001452,2]
[332871673,1721607057736,-500.0,0.0001452,2]
[332871674,1721607057746,-500.0,0.0001452,2]
[332871675,1721607057756,-500.0,0.0001452,2]
[332871676,1721607057766,-500.0,0.0001452,2]
[332871677,1721607057776,-150.45,0.0001452,2]
[332871678,1721607057789,-500.0,0.0001452,2]
[332871679,1721607057799,-500.0,0.0001452,2]
[332871680,1721607057808,-500.0,0.0001452,2]
[332871681,1721607057817,-500.0,0.0001452,2]
[332871682,1721607057827,-500.0,0.0001452,2]
[332871683,1721607057836,-281.3,0.0001452,2]
[332871684,1721607057846,-500.0,0.0001452,2]
[332871685,1721607057855,-500.0,0.0001452,2]
[332871686,1721607057864,-500.0,0.0001452,2]
[332871687,1721607057873,-500.0,0.0001452,2]
[332871688,1721607057883,-500.0,0.0001452,2]
[332871689,1721607057892,-500.0,0.0001452,2]
[332871690,1721607057902,-500.0,0.0001452,2]
[332871691,1721607057911,-500.0,0.0001452,2]
[332871692,1721607057921,-246.05,0.0001452,2]
[332871693,1721607057930,-292.45,0.0001452,2]
[332871694,1721607057940,-500.0,0.0001452,2]
[332871695,1721607057950,-500.0,0.0001452,2]
[332871696,1721607057959,-607.67,0.0001452,2]
[332871697,1721607057970,-500.0,0.0001452,2]
[332871698,1721607057980,-500.0,0.0001452,2]
[332871699,1721607057990,-2031.18795414,0.0001452,2]
[332871700,1721607057998,-153.0,0.00014603,2]
[332871701,1721607058008,-1152.0,0.00014638,2]
[332871702,1721607058018,-1519.35514429,0.0001469,2]
[332871703,1721607058028,-154.74467129,0.0001469,2]
[332871704,1721607058041,-1011.16365627,0.0001469,2]
[332871705,1721607058050,-154.047387,0.00014692,2]
[332871706,1721607058059,-260.220898,0.00014692,2]
[332871707,1721607058071,-222.340102,0.00014692,2]
[332871708,1721607058080,-185.283419,0.00014692,2]
[332871709,1721607058089,-250.097,0.0001472,2]
[332871710,1721607058098,-150.0,0.0001472,2]
[332871711,1721607058108,-150.0,0.0001472,2]
[332871712,1721607058118,-505.0,0.0001472,2]
[332871713,1721607058127,-1408.0,0.0001472,2]
[332871714,1721607058138,-500.0,0.00014794,2]
[332871715,1721607058148,-500.0,0.00014794,2]
[332871716,1721607058157,-500.0,0.00014794,2]
[332871717,1721607058166,-500.0,0.00014794,2]
[332871718,1721607058176,-407.18,0.00014794,2]
[332871719,1721607058185,-590.47,0.00014794,2]
[332871720,1721607058195,-500.0,0.00014794,2]
[332871721,1721607058205,-403.86,0.00014794,2]
[332871722,1721607058214,-500.0,0.00014794,2]
[332871723,1721607058224,-500.0,0.00014794,2]
[332871724,1721607058234,-281.18,0.00014794,2]
[332871725,1721607058244,-500.0,0.00014794,2]
[332871726,1721607058253,-500.0,0.00014794,2]
[332871727,1721607058262,-500.0,0.00014794,2]
[332871728,1721607058272,-500.0,0.00014794,2]
[332871729,1721607058285,-500.0,0.00014794,2]
[332871730,1721607058294,-500.0,0.00014794,2]
[332871731,1721607058303,-500.0,0.00014794,2]
[332871732,1721607058312,-500.0,0.00014794,2]
[332871733,1721607058471,-500.0,0.00014794,2]
[332871734,1721607058482,-330.6,0.00014794,2]
[332871735,1721607058491,-580.89,0.00014794,2]
[332871736,1721607058503,-500.0,0.00014794,2]
[332871737,1721607058513,-500.0,0.00014794,2]
[332871738,1721607058523,-224.01,0.00014794,2]
[332871739,1721607058534,-455.86,0.00014794,2]
[332871740,1721607058543,-500.0,0.00014794,2]
[332871741,1721607058553,-172.30518037,0.00014794,2]
[332871742,1721607058562,-500.0,0.00014794,2]
[332871743,1721607058572,-180.10618118,0.00014794,2]
[332871744,1721607058583,-500.0,0.00014794,2]
[332871745,1721607058594,-500.0,0.00014794,2]
[332871746,1721607058604,-500.0,0.00014794,2]
[332871747,1721607058614,-500.0,0.00014794,2]
[332871748,1721607058624,-500.0,0.00014794,2]
[332871749,1721607058634,-201.22,0.00014794,2]
[332871750,1721607058643,-500.0,0.00014794,2]
[332871751,1721607058654,-206.37013063,0.00014794,2]
[332871752,1721607058663,-500.0,0.00014794,2]
[332871753,1721607058673,-500.0,0.00014794,2]
[332871754,1721607058684,-500.0,0.00014794,2]
[332871755,1721607058693,-500.0,0.00014794,2]
[332871756,1721607058703,-500.0,0.00014794,2]
[332871757,1721607058712,-500.0,0.00014794,2]
[332871758,1721607058722,-500.0,0.00014794,2]
[332871759,1721607058733,-500.0,0.00014794,2]
[332871760,1721607058743,-377.65,0.00014794,2]
[332871761,1721607058752,-484.76,0.00014794,2]
[332871762,1721607058761,-202.13,0.00014794,2]
[332871763,1721607058772,-197.7,0.00014794,2]
[332871764,1721607058783,-500.0,0.00014794,2]
[332871765,1721607058795,-500.0,0.00014794,2]
[332871766,1721607058804,-590.47,0.00014794,2]
[332871767,1721607058814,-500.0,0.00014794,2]
[332871768,1721607058823,-500.0,0.00014794,2]
[332871769,1721607058833,-306.74,0.00014794,2]
[332871770,1721607058844,-500.0,0.00014794,2]
[332871771,1721607058854,-500.0,0.00014794,2]
[332871772,1721607058864,-500.0,0.00014794,2]
[332871773,1721607058874,-6122.85,0.00014794,2]
[332871774,1721607058885,-500.0,0.00014794,2]
[332871775,1721607058896,-500.0,0.00014794,2]
[332871776,1721607058905,-500.0,0.00014794,2]
[332871777,1721607058915,-500.0,0.00014794,2]
[332871778,1721607058925,-500.0,0.00014794,2]
[332871779,1721607058935,-500.0,0.00014794,2]
[332871780,1721607058945,-500.0,0.00014794,2]
[332871781,1721607058955,-446.86,0.00014794,2]
[332871782,1721607058965,-500.0,0.00014794,2]
[332871783,1721607058976,-500.0,0.00014794,2]
[332871784,1721607058986,-500.0,0.00014794,2]
[332871785,1721607058996,-500.0,0.00014794,2]
[332871786,1721607059007,-500.0,0.00014794,2]
[332871787,1721607059018,-500.0,0.00014794,2]
[332871788,1721607059028,-500.0,0.00014794,2]
[332871789,1721607059041,-500.0,0.00014794,2]
[332871790,1721607059051,-500.0,0.00014794,2]
[332871791,1721607059060,-411.49,0.00014794,2]
[332871792,1721607059070,-500.0,0.00014794,2]
[332871793,1721607059079,-500.0,0.00014794,2]
[332871794,1721607059089,-500.0,0.00014794,2]
[332871795,1721607059098,-500.0,0.00014794,2]
[332871796,1721607059108,-500.0,0.00014794,2]
[332871797,1721607059117,-500.0,0.00014794,2]
[332871798,1721607059127,-500.0,0.00014794,2]
[332871799,1721607059137,-500.0,0.00014794,2]
[332871800,1721607059147,-500.0,0.00014794,2]
[332871801,1721607059157,-193.05,0.00014794,2]
[332871802,1721607059167,-500.0,0.00014794,2]
[332871803,1721607059177,-500.0,0.00014794,2]
[332871804,1721607059187,-500.0,0.00014794,2]
[332871805,1721607059196,-165.0,0.00014795,2]
[332871806,1721607059207,-154.047387,0.00014871,2]
[332871807,1721607059216,-260.220898,0.00014871,2]
[332871808,1721607059226,-222.340102,0.00014871,2]
[332871809,1721607059237,-160.03553055,0.000149,2]
[332871810,1721607059246,-306.0,0.00014955,2]
[332871811,1721607059256,-500.67556622,0.00014999,2]
[332871812,1721607059266,-154.74467129,0.00015,2]
[332871813,1721607059275,-287.96313717,0.00015,2]
[332871814,1721607059285,-510868.602725,0.00015,2]
[332871815,1721607059294,-2844.20261952,0.00015,2]
[332871816,1721607059304,-951.09536829,0.00015,2]
[332871817,1721607059313,-1107.09615599,0.00015,2]
[332871818,1721607059322,-1044.15123109,0.00015,2]
[332871819,1721607059333,-2426.60736083,0.00015,2]
[332871820,1721607059342,-500.0,0.0001505,2]
[332871821,1721607059353,-154.047387,0.00015051,2]
[332871822,1721607059362,-260.220898,0.00015051,2]
[332871823,1721607059374,-222.340102,0.00015051,2]
[332871824,1721607059384,-159.650921,0.00015051,2]
[332871825,1721607059394,-185.283419,0.00015051,2]
[332871826,1721607059405,-165.125743,0.00015051,2]
[332871827,1721607059416,-500.0,0.00015068,2]
[332871828,1721607059430,-306.83,0.00015068,2]
[332871829,1721607059440,-500.0,0.00015068,2]
[332871830,1721607059451,-500.0,0.00015068,2]
[332871831,1721607059461,-500.0,0.00015068,2]
[332871832,1721607059473,-500.0,0.00015068,2]
[332871833,1721607059483,-500.0,0.00015068,2]
[332871834,1721607059493,-500.0,0.00015068,2]
[332871835,1721607059504,-500.0,0.00015068,2]
[332871836,1721607059514,-500.0,0.00015068,2]
[332871837,1721607059523,-500.0,0.00015068,2]
[332871838,1721607059533,-500.0,0.00015068,2]
[332871839,1721607059542,-500.0,0.00015068,2]
[332871840,1721607059551,-500.0,0.00015068,2]
[332871841,1721607059561,-590.18,0.00015068,2]
[332871842,1721607059570,-500.0,0.00015068,2]
[332871843,1721607059579,-580.89,0.00015068,2]
[332871844,1721607059589,-500.0,0.00015068,2]
[332871845,1721607059598,-197.7,0.00015068,2]
[332871846,1721607059608,-500.0,0.00015068,2]
[332871847,1721607059618,-500.0,0.00015068,2]
[332871848,1721607059627,-500.0,0.00015068,2]
[332871849,1721607059637,-500.0,0.00015068,2]
[332871850,1721607059647,-500.0,0.00015068,2]
[332871851,1721607059656,-229.93,0.00015068,2]
[332871852,1721607059666,-500.0,0.00015068,2]
[332871853,1721607059675,-500.0,0.00015068,2]
[332871854,1721607059685,-500.0,0.00015068,2]
[332871855,1721607059694,-500.0,0.00015068,2]
[332871856,1721607059703,-500.0,0.00015068,2]
[332871857,1721607059713,-500.0,0.00015068,2]
[332871858,1721607059721,-500.0,0.00015068,2]
[332871859,1721607059730,-500.0,0.00015068,2]
[332871860,1721607059739,-500.0,0.00015068,2]
[332871861,1721607059749,-500.0,0.00015068,2]
[332871862,1721607059758,-500.0,0.00015068,2]
[332871863,1721607059767,-248.18,0.00015068,2]
[332871864,1721607059777,-566.68,0.00015068,2]
[332871865,1721607059787,-500.0,0.00015068,2]
[332871866,1721607059796,-614.15,0.00015068,2]
[332871867,1721607059806,-543.34242243,0.00015068,2]
[332871868,1721607059815,-6122.85,0.00015068,2]
[332871869,1721607059825,-500.0,0.00015068,2]
[332871870,1721607059835,-500.0,0.00015068,2]
[332871871,1721607059845,-500.0,0.00015068,2]
[332871872,1721607059855,-500.0,0.00015068,2]
[332871873,1721607059864,-500.0,0.00015068,2]
[332871874,1721607059874,-500.0,0.00015068,2]
[332871875,1721607059883,-500.0,0.00015068,2]
[332871876,1721607059893,-500.0,0.00015068,2]
[332871877,1721607059903,-500.0,0.00015068,2]
[332871878,1721607059912,-500.0,0.00015068,2]
[332871879,1721607059922,-500.0,0.00015068,2]
[332871880,1721607059932,-500.0,0.00015068,2]
[332871881,1721607059942,-649.5,0.00015068,2]
[332871882,1721607059952,-500.0,0.00015068,2]
[332871883,1721607059961,-422.54,0.00015068,2]
[332871884,1721607059971,-500.0,0.00015068,2]
[332871885,1721607059980,-153.6,0.00015068,2]
[332871886,1721607059990,-262.93,0.00015068,2]
[332871887,1721607059999,-500.0,0.00015068,2]
[332871888,1721607060009,-500.0,0.00015068,2]
[332871889,1721607060019,-500.0,0.00015068,2]
[332871890,1721607060028,-500.0,0.00015068,2]
[332871891,1721607060039,-597.04,0.00015068,2]
[332871892,1721607060049,-500.0,0.00015068,2]
[332871893,1721607060059,-500.0,0.00015068,2]
[332871894,1721607060069,-500.0,0.00015068,2]
[332871895,1721607060079,-161.56835674,0.00015068,2]
[332871896,1721607060088,-500.0,0.00015068,2]
[332871897,1721607060098,-500.0,0.00015342,2]
[332871898,1721607060108,-500.0,0.00015342,2]
[332871899,1721607060118,-500.0,0.00015342,2]
[332871900,1721607060127,-500.0,0.00015342,2]
[332871901,1721607060136,-222.11,0.00015342,2]
[332871902,1721607060146,-520.82,0.00015342,2]
[332871903,1721607060155,-500.0,0.00015342,2]
[332871904,1721607060165,-333.01,0.00015342,2]
[332871905,1721607060175,-500.0,0.00015342,2]
[332871906,1721607060184,-643.74499948,0.00015342,2]
[332871907,1721607060193,-204.73,0.00015342,2]
[332871908,1721607060204,-500.0,0.00015342,2]
[332871909,1721607060214,-500.0,0.00015342,2]
[332871910,1721607060223,-233.22,0.00015342,2]
[332871911,1721607060234,-580.89,0.00015342,2]
[332871912,1721607060245,-202.13,0.00015342,2]
[332871913,1721607060255,-500.0,0.00015342,2]
[332871914,1721607060264,-593.6,0.00015342,2]
[332871915,1721607060276,-500.0,0.00015342,2]
[332871916,1721607060286,-500.0,0.00015342,2]
[332871917,1721607060296,-313.44,0.00015342,2]
[332871918,1721607060306,-500.0,0.00015342,2]
[332871919,1721607060316,-500.0,0.00015342,2]
[332871920,1721607060326,-500.0,0.00015342,2]
[332871921,1721607060335,-244.99,0.00015342,2]
[332871922,1721607060345,-500.0,0.00015342,2]
[332871923,1721607060355,-500.0,0.00015342,2]
[332871924,1721607060366,-500.0,0.00015342,2]
[332871925,1721607060376,-169.97,0.00015342,2]
[332871926,1721607060386,-500.0,0.00015342,2]
[332871927,1721607060396,-354.15757757,0.00015342,2]
[332871928,1721607060405,-500.0,0.00015342,2]
[332871929,1721607060416,-213.48,0.00015342,2]
[332871930,1721607060429,-6122.85,0.00015342,2]
[332871931,1721607060439,-500.0,0.00015342,2]
[332871932,1721607060451,-500.0,0.00015342,2]
[332871933,1721607060461,-231.7,0.00015342,2]
[332871934,1721607060471,-500.0,0.00015342,2]
[332871935,1721607060481,-500.0,0.00015342,2]
[332871936,1721607060490,-500.0,0.00015342,2]
[332871937,1721607060501,-500.0,0.00015342,2]
[332871938,1721607060513,-500.0,0.00015342,2]
[332871939,1721607060524,-500.0,0.00015342,2]
[332871940,1721607060535,-230.76,0.00015342,2]
[332871941,1721607060545,-584.54,0.00015342,2]
[332871942,1721607060555,-500.0,0.00015342,2]
[332871943,1721607060565,-500.0,0.00015342,2]
[332871944,1721607060574,-500.0,0.00015342,2]
[332871945,1721607060585,-518.62,0.00015342,2]
[332871946,1721607060594,-500.0,0.00015342,2]
[332871947,1721607060606,-466.47,0.00015342,2]
[332871948,1721607060615,-500.0,0.00015342,2]
[332871949,1721607060624,-2031.18795414,0.00015443,2]
[332871950,1721607060634,-1000.0,0.000155,2]
[332871951,1721607060643,-1583.35004357,0.00015588,2]
[332871952,1721607060654,-500.0,0.00015616,2]
[332871953,1721607060663,-500.0,0.00015616,2]
[332871954,1721607060673,-213.48,0.00015616,2]
[332871955,1721607060682,-500.0,0.00015616,2]
[332871956,1721607060692,-383.62548739,0.00015616,2]
[332871957,1721607060772,-230.62451261,0.00015616,2]
[332871958,1721607060781,-500.0,0.00015616,2]
[332871959,1721607060794,-516.4,0.00015616,2]
[332871960,1721607060804,-500.0,0.00015616,2]
[332871961,1721607060814,-580.89,0.00015616,2]
[332871962,1721607060826,-189.8,0.00015616,2]
[332871963,1721607060836,-39.68089051,0.00015616,2]
[332871964,1721607060850,-460.31910949,0.00015616,2]
[332871965,1721607060860,-500.0,0.00015616,2]
[332871966,1721607060870,-203.39,0.00015616,2]
[332871967,1721607060879,-500.0,0.00015616,2]
[332871968,1721607060889,-500.0,0.00015616,2]
[332871969,1721607060898,-500.0,0.00015616,2]
[332871970,1721607060908,-222.11,0.00015616,2]
[332871971,1721607060918,-500.0,0.00015616,2]
[332871972,1721607060928,-500.0,0.00015616,2]
[332871973,1721607060938,-516.4,0.00015616,2]
[332871974,1721607060949,-6122.85,0.00015616,2]
[332871975,1721607060959,-500.0,0.00015616,2]
[332871976,1721607060969,-500.0,0.00015616,2]
[332871977,1721607060979,-346.42,0.00015616,2]
[332871978,1721607060989,-500.0,0.00015616,2]
[332871979,1721607060998,-500.0,0.00015616,2]
[332871980,1721607061009,-500.0,0.00015616,2]
[332871981,1721607061018,-500.0,0.00015616,2]
[332871982,1721607061028,-579.9,0.00015616,2]
[332871983,1721607061040,-496.67,0.00015616,2]
[332871984,1721607061050,-183.92152918,0.00015616,2]
[332871985,1721607061065,-316.07847082,0.00015616,2]
[332871986,1721607061075,-500.0,0.00015616,2]
[332871987,1721607061085,-288.58,0.00015616,2]
[332871988,1721607061095,-500.0,0.00015616,2]
[332871989,1721607061105,-33533.64512134,0.0001569,2]
[332871990,1721607061115,-87513.38829883,0.000157,2]
[332871991,1721607061124,-584.671337,0.000157,6]
[332871992,1721607061133,-10521.45389155,0.00015707,2]
[332871993,1721607061143,-10582.97822995,0.00015707,2]
[332871994,1721607061153,-4924.38613709,0.00015707,2]
[332871995,1721607061163,-10079.46404801,0.00015707,2]
[332871996,1721607061172,-7107.82996949,0.00015708,2]
[332871997,1721607061181,-1161.54143485,0.00015708,2]
[332871998,1721607061191,-18497.2941328,0.00015708,2]
[332871999,1721607061201,-1762.32290703,0.00015708,2]
[332872000,1721607061210,-3774.60857808,0.00015708,2]
[332872001,1721607061219,-1696.56734291,0.00015708,2]
[332872002,1721607061229,-4248.79961277,0.00015708,2]
[332872003,1721607061239,-33182.75344673,0.00015708,2]
[332872004,1721607061248,-27640.46092758,0.00015708,2]
[332872005,1721607061258,-3820.43414536,0.00015708,2]
[332872006,1721607061268,-13431.04307036,0.00015708,2]
[332872007,1721607061278,-20353.50557941,0.00015708,2]
[332872008,1721607061290,-492.16726858,0.00015708,2]
[332872009,1721607061299,-4076.00622126,0.00015708,2]
[332872010,1721607061308,-1500.0,0.00015708,2]
[332872011,1721607061318,-2084.84338678,0.00015708,2]
[332872012,1721607061327,-2811.0007313,0.00015708,2]
[332872013,1721607061336,-5200.03784169,0.00015708,2]
[332872014,1721607061346,-1628.59285973,0.00015708,2]
[332872015,1721607061355,-1023.8274522,0.00015708,2]
[332872016,1721607061364,-67173.83330443,0.00015709,2]
[332872017,1721607061374,-49028.65425379,0.00015709,2]
[332872018,1721607061383,-97473.2706806,0.00015744,2]
[332872019,1721607061392,-1149.73677195,0.00015858,2]
[332872020,1721607061402,-197.88924486,0.0001588,2]
[332872021,1721607061411,-500.0,0.0001588,2]
[332872022,1721607061420,-500.0,0.0001588,2]
[332872023,1721607061434,-500.0,0.0001588,2]
[332872024,1721607061444,-500.0,0.0001588,2]
[332872025,1721607061453,-500.0,0.0001588,2]
[332872026,1721607061463,-500.0,0.0001588,2]
[332872027,1721607061472,-500.0,0.0001588,2]
[332872028,1721607061482,-500.0,0.0001588,2]
[332872029,1721607061491,-591.49,0.0001588,2]
[332872030,1721607061500,-642.9,0.0001588,2]
[332872031,1721607061510,-500.0,0.0001588,2]
[332872032,1721607061519,-500.0,0.0001588,2]
[332872033,1721607061529,-185.82,0.0001588,2]
[332872034,1721607061541,-500.0,0.0001588,2]
[332872035,1721607061550,-500.0,0.0001588,2]
[332872036,1721607061559,-500.0,0.0001588,2]
[332872037,1721607061569,-500.0,0.0001588,2]
[332872038,1721607061578,-500.0,0.0001588,2]
[332872039,1721607061587,-500.0,0.0001588,2]
[332872040,1721607061596,-500.0,0.0001588,2]
[332872041,1721607061606,-500.0,0.0001588,2]
[332872042,1721607061615,-500.0,0.0001588,2]
[332872043,1721607061625,-500.0,0.0001588,2]
[332872044,1721607061634,-500.0,0.0001588,2]
[332872045,1721607061643,-606.64278413,0.0001588,2]
[332872046,1721607061653,-500.0,0.0001588,2]
[332872047,1721607061662,-500.0,0.0001588,2]
[332872048,1721607061671,-500.0,0.0001588,2]
[332872049,1721607061680,-500.0,0.0001588,2]
[332872050,1721607061689,-500.0,0.0001588,2]
[332872051,1721607061699,-500.0,0.0001588,2]
[332872052,1721607061708,-500.90681848,0.0001588,2]
[332872053,1721607061717,-500.0,0.0001588,2]
[332872054,1721607061726,-500.0,0.0001588,2]
[332872055,1721607061735,-500.0,0.0001588,2]
[332872056,1721607061744,-500.0,0.0001588,2]
[332872057,1721607061753,-500.0,0.0001588,2]
[332872058,1721607061763,-500.0,0.0001588,2]
[332872059,1721607061772,-185.40430057,0.0001588,2]
[332872060,1721607061781,-500.0,0.0001588,2]
[332872061,1721607061791,-500.0,0.00015888,2]
[332872062,1721607061800,-500.0,0.00015888,2]
[332872063,1721607061810,-500.0,0.00015888,2]
[332872064,1721607061820,-569.31,0.00015888,2]
[332872065,1721607061829,-500.0,0.00015888,2]
[332872066,1721607061838,-252.98,0.00015888,2]